Cogmind - Beta 12 @@@ ROGUE MODE // 2023.10.02 @ 01:44:58 Player: monistgf Result: Self-destructed Performance ------------- Evolutions (5) 2500 Regions Visited (12) 2400 Robots Destroyed (96) 480 Value Destroyed (3642) 3642 Prototype IDs (5) 100 Alien Tech Used (0) 0 Bonus (3699) 3699 TOTAL SCORE: 12821 Bonus ------- High Alert Combat Kills 909 Follower Combat Kills 2617 Network Hubs Disabled 200 Aligned with FarCom 300 Built Enhanced Grunts 300 Met R17 at Cetus 500 Friendly Fire -1127 Cogmind --------- Core Integrity 243/1000 Matter 300/300 Energy 68/100 System Corruption 9% Temperature Cool (35) Movement Core (350) Ox6 Location -5/Factory Parts ------- > --- POWER (1) -------- (None) > --- PROPULSION (5) --- (None) > --- UTILITY (8) ------ Large Storage Unit Advanced Targeting Computer Advanced Targeting Computer > --- WEAPON (3) ------- (None) > --- INVENTORY (15) --- Large Storage Unit Improved Matter Compressor (300) Improved Terrain Scanner Focal Shield Long-range Tractor Beam Long-range Proton Cannon Heavy Phase Cannon Heavy Rocket Launcher Peak State ------------ > --- POWER ------------ Neutrino Core > --- PROPULSION ------- Improved Treads Advanced Treads Medium Treads Medium Treads Flexi-carbon Leg > --- UTILITY ---------- Advanced Heat Sink Advanced Heat Sink Large Storage Unit Advanced Targeting Computer Advanced Targeting Computer Centrium Medium Armor Plating Medium Reactive Plating Improved Dynamic Insulation System > --- WEAPON ----------- Wave Gun Long-range Proton Cannon Advanced KE Penetrator > --- INVENTORY -------- Fission Core Carbon-fiber Leg Large Storage Unit Improved Matter Compressor Improved Terrain Scanner Improved Medium Armor Plating Layered Medium Armor Plating Focal Shield Long-range Tractor Beam Wave Gun Heavy Phase Cannon KE Penetrator Gauss Cannon Heavy Rocket Launcher Power Sword [Rating: 86] Favorites ----------- Power Fission Core Engine Improved Deuterium Engine Power Core Fission Core Propulsion Medium Treads Treads Medium Treads Leg Flexi-carbon Leg Flight Unit VTOL Module Utility Advanced Targeting Computer Device Improved Terrain Scanner Storage Large Storage Unit Processor Advanced Targeting Computer Protection Improved Medium Armor Plating Weapon Advanced Assault Cannon Energy Gun Beamcaster Energy Cannon Heavy Ion Cannon Ballistic Gun Assault Rifle Ballistic Cannon Advanced Assault Cannon Launcher Grenade Launcher Slashing Weapon Power Sword Build | -11 -10 -10 -10 -9 -8 -7 -6 -6 -6 -6 -6 -5 ------- Run | Jun Mat Min Exi Min Mat Fac Fac Ext Cet Arc Hub Fac Slots Evolved 10 | . . . . . 4 2 2 . . . . 2 Power . | . . . . . . . . . . . . . Propulsion 3 | . . . . . 1 . 1 . . . . 1 Utility 6 | . . . . . 2 2 1 . . . . 1 Weapon 1 | . . . . . 1 . . . . . . . Parts Attached 107 | . 9 1 . 5 18 14 3 13 10 . 5 29 Power 7 | . 1 . . 1 . 1 . 2 . . . 2 Engine 4 | . 1 . . 1 . 1 . 1 . . . . Core 3 | . . . . . . . . 1 . . . 2 Reactor . | . . . . . . . . . . . . . Propulsion 22 | . 4 . . . 5 . 1 3 . . 1 8 Treads 16 | . 2 . . . 5 . 1 3 . . 1 4 Leg 5 | . 2 . . . . . . . . . . 3 Wheel . | . . . . . . . . . . . . . Hover . | . . . . . . . . . . . . . Flight 1 | . . . . . . . . . . . . 1 Utility 43 | . 4 1 . 3 6 7 1 3 4 . 3 11 Device 17 | . 3 1 . . 2 3 1 1 2 . . 4 Storage 3 | . . . . 1 1 . . 1 . . . . Processor 4 | . . . . . . 2 . . . . 1 1 Hackware . | . . . . . . . . . . . . . Protection 19 | . 1 . . 2 3 2 . 1 2 . 2 6 Artifact . | . . . . . . . . . . . . . Weapon 35 | . . . . 1 7 6 1 5 6 . 1 8 Energy Gun 9 | . . . . . 2 . . 2 2 . . 3 Energy Cannon 3 | . . . . . . . 1 . 1 . . 1 Ballistic Gun 14 | . . . . 1 4 5 . 2 1 . . 1 Ballistic Cannon 3 | . . . . . . 1 . . . . 1 1 Launcher 2 | . . . . . 1 . . . 1 . . . Special Weapon . | . . . . . . . . . . . . . Impact Weapon . | . . . . . . . . . . . . . Slashing Weapon 4 | . . . . . . . . 1 1 . . 2 Piercing Weapon . | . . . . . . . . . . . . . Special Melee Weapon . | . . . . . . . . . . . . . Unidentified Prototypes 3 | . . . . . . . . 1 2 . . . Parts Lost 29 | . . . . . . 2 . 1 . . 1 25 Power 3 | . . . . . . 1 . . . . . 2 Propulsion 9 | . . . . . . . . . . . 1 8 Utility 10 | . . . . . . . . 1 . . . 9 Weapon 7 | . . . . . . 1 . . . . . 6 Highest Loss Streak 21 | . . . . . . 1 . 1 . . 1 21 To Critical Strikes . | . . . . . . . . . . . . . Average Slot Usage (%) 99 | . 99 100 100 100 99 99 100 99 99 100 100 95 Engine 5 | . 14 14 14 14 9 6 6 3 . . . . Core 2 | . . . . . . . . 2 6 6 6 4 Treads 24 | . 17 28 28 28 27 23 26 26 26 26 26 23 Leg 1 | . 10 . . . . . . . . . . 2 Device 15 | . 8 14 14 . 17 15 20 20 19 20 13 11 Storage 7 | . 14 14 14 14 9 7 6 6 6 6 6 5 Processor 9 | . . . . . . 13 13 13 13 13 19 13 Protection 7 | . 5 . . 13 9 8 6 5 6 6 6 12 Energy Gun 1 | . . . . . 8 1 . 1 2 . . . Energy Cannon 2 | . . . . . . . 5 5 . . . 3 Ballistic Gun 13 | . 28 28 28 28 18 16 6 5 6 13 13 6 Ballistic Cannon 3 | . . . . . . 4 6 6 6 6 6 3 Naked Turns . | . . . . . . . . . . . . . Heaviest Build 96 | 12 17 15 15 28 50 58 62 64 66 61 61 96 Greatest Support 129 | 20 46 46 46 46 76 76 104 104 104 104 106 129 Greatest Overweight (x) 4 | . . . . . . . . . . . . 4 Average Overweight (x) . | . . . . . . . . . . . . . Largest Inventory Capacity 15 | 8 8 8 8 10 15 15 15 15 15 15 15 15 Average Capacity 13 | 8 8 8 8 9 11 15 15 15 15 15 15 15 Most Carried 15 | 6 8 8 8 10 15 15 15 15 15 15 15 15 Average Carried 13 | 6 7 8 8 9 10 14 14 14 15 14 14 14 Final Capacity 15 | 8 8 8 8 10 15 15 15 15 15 15 15 15 Final Carried 15 | 6 8 8 8 10 15 15 15 15 15 15 15 8 Class Distribution -------------------- 26% | Commander-Gunner 16% | Mutant 15% | Gunner 13% | Scavenger-Skirmisher 9% | Skirmisher 6% | Scavenger-Gunner 4% | Scavenger-Assassin 3% | Scavenger-Tank Dominant Class ---------------- Mutant | -10/Materials Mutant | -10/Mines Mutant | -10/Exiles Mutant | -9/Mines Scavenger-Skirmisher | -8/Materials Skirmisher | -7/Factory Gunner | -6/Factory Commander-Gunner | -6/Extension Commander-Gunner | -6/Cetus Commander-Gunner | -6/Archives Commander-Gunner | -6/Hub_04(d) Scavenger-Assassin | -5/Factory Resources | -11 -10 -10 -10 -9 -8 -7 -6 -6 -6 -6 -6 -5 ----------- Run | Jun Mat Min Exi Min Mat Fac Fac Ext Cet Arc Hub Fac Matter Collected 2863 | 200 133 . . 156 456 320 . 655 170 52 105 616 Remotely . | . . . . . . . . . . . . . Salvage Created 3974 | . 221 . . 54 907 364 70 593 . 69 260 1436 Parts 214 | . 18 . . 4 45 23 6 26 . 5 16 71 Haulers Intercepted 3 | . . . . . 3 . . . . . . . Recyclers Shooed 4 | . . . . . 1 . . 3 . . . . Parts Field Recycled . | . . . . . . . . . . . . . Retrieved Matter . | . . . . . . . . . . . . . Parts Self-Destructed . | . . . . . . . . . . . . . Prevented . | . . . . . . . . . . . . . Kills | -11 -10 -10 -10 -9 -8 -7 -6 -6 -6 -6 -6 -5 ------- Run | Jun Mat Min Exi Min Mat Fac Fac Ext Cet Arc Hub Fac Combat Hostiles Destroyed 79 | . 7 . . 2 15 9 3 12 . 1 2 28 Melee 1 | . . . . . . . . . . . . 1 Guns 48 | . 7 . . 2 12 7 1 5 . 1 1 12 Cannons 25 | . . . . . . 2 2 6 . . 1 14 AOE 3 | . . . . . 3 . . . . . . . Classes Destroyed 14 | . 2 . . 1 5 2 . 1 . . . 3 Worker 4 | . . . . . 1 . . . . . 2 1 Builder 1 | . . . . . . . . . . . . 1 Tunneler 1 | . . . . 1 . . . . . . . . Hauler 3 | . . . . . 3 . . . . . . . Recycler 2 | . . . . . 1 1 . . . . . . Operator 2 | . . . . . . 1 . . . . . 1 Watcher 2 | . . . . . . . . 1 . . . 1 Swarmer 27 | . 3 . . 2 3 4 3 . . . . 12 Grunt 18 | . 4 . . . 5 . . 1 . . . 8 Brawler 2 | . . . . . . . . . . . . 2 Duelist 3 | . . . . . . . . . . . . 3 Sentry 22 | . . . . . 5 1 . 11 . 1 2 2 Hunter 3 | . . . . . 2 1 . . . . . . Programmer 4 | . . . . . . 3 . . . . . 1 Thug 2 | . . . . . . . . . . . 2 . Best Kill Streak 7 | . 2 . . 3 3 5 3 2 . 1 2 7 Combat Bots Only 7 | . 2 . . 2 3 5 3 2 . 1 1 7 Max Kills in Single Turn 2 | . 1 . . 2 2 1 1 1 . 1 2 2 Gunslinging . | . . . . . . . . . . . . . Exploded 2 | . . . . . 2 . . . . . . . Melee 1 | . . . . . . . . . . . . 1 Uniques/NPCs Destroyed . | . . . . . . . . . . . . . Combat | -11 -10 -10 -10 -9 -8 -7 -6 -6 -6 -6 -6 -5 -------- Run | Jun Mat Min Exi Min Mat Fac Fac Ext Cet Arc Hub Fac Damage Taken 7312 | . 214 . . 70 568 663 52 883 322 182 141 4217 Core 1037 | . 30 . . 13 71 49 . 54 15 48 . 757 Absorbed by Shields 64 | . . . . . . . . . 64 . . . Core Remaining (%) 89 | 100 . . . 82 87 93 . . . . 86 . Volleys Fired 181 | . 18 . . 4 40 14 3 39 6 3 5 49 Largest 3 | . 2 . . 2 3 3 3 3 3 3 3 3 Hottest 204 | . 40 . . 40 123 104 141 204 159 113 113 197 Shots Fired 501 | . 36 . . 8 116 43 9 119 14 9 16 131 Gun 318 | . 36 . . 8 114 31 3 42 8 6 11 59 Cannon 179 | . . . . . . 12 6 77 4 3 5 72 Launcher 4 | . . . . . 2 . . . 2 . . . Special . | . . . . . . . . . . . . . Kinetic 358 | . 36 . . 8 76 43 6 73 8 9 16 83 Thermal 101 | . . . . . 38 . 3 46 4 . . 10 Explosive 4 | . . . . . 2 . . . 2 . . . Electromagnetic 38 | . . . . . . . . . . . . 38 Robot Hit Streak 29 | . 5 . . 5 19 17 5 29 11 18 10 26 Robot Miss Streak 4 | . 2 . . 1 3 2 1 2 . . 1 4 Penetration Max 1 | . . . . . . . 1 . . . . 1 Secondary Targets 2 | . . . . . 2 . . . . . . . Max Gunslinging Chain 1 | . . . . . 1 . . . . . . . Shots Hit Robots 369 | . 20 . . 6 85 27 5 106 3 7 10 100 Core Hits 202 | . 11 . . 3 32 22 3 60 4 4 12 51 Critical Kills 6 | . 1 . . . . . . 1 . . . 4 Critical Parts Destroyed 4 | . . . . . 1 . . . . . . 3 Critical Strikes 21 | . 1 . . . 6 . . 3 . 1 . 10 Burn 5 | . . . . . 5 . . . . . . . Meltdown 1 | . . . . . . . . 1 . . . . Destroy 9 | . 1 . . . 1 . . . . . . 7 Blast 4 | . . . . . . . . 2 . 1 . 1 Sever 2 | . . . . . . . . . . . . 2 Melee Attacks 34 | . . . . . . . . 4 17 . . 13 Impact . | . . . . . . . . . . . . . Slashing 34 | . . . . . . . . 4 17 . . 13 Piercing . | . . . . . . . . . . . . . Sneak Attacks . | . . . . . . . . . . . . . Combat Hostiles . | . . . . . . . . . . . . . Follow-up Attacks . | . . . . . . . . . . . . . Damage Inflicted 10210 | . 243 . . 92 1739 610 147 3023 238 189 844 3085 Guns 5035 | . 243 . . 92 1528 412 63 1072 48 131 185 1261 Cannons 3900 | . . . . . . 175 84 1930 30 58 91 1532 Explosions 1003 | . . . . . 163 . . . 160 . 568 112 Melee 143 | . . . . . . . . . . . . 143 Ramming 129 | . . . . . 48 23 . 21 . . . 37 Kinetic 5755 | . 243 . . 92 882 587 94 1837 54 189 276 1501 Thermal 2299 | . . . . . 646 . 53 1165 24 . 41 370 Explosive 323 | . . . . . 163 . . . 160 . . . Electromagnetic 1561 | . . . . . . . . . . . 527 1034 Impact . | . . . . . . . . . . . . . Slashing 143 | . . . . . . . . . . . . 143 Piercing . | . . . . . . . . . . . . . Highest Corruption 9 | . 1 1 1 1 . 2 1 1 1 1 1 9 Average Corruption 1 | . 1 1 1 1 . 1 1 1 1 1 1 7 Corruption Purged . | . . . . . . . . . . . . . Corruption Blocked 10 | . . . . . . . 10 . . . . . Effects 72 | . . . 3 6 . 10 1 18 3 1 4 26 Message Errors 18 | . . . . . . 2 1 4 2 . 2 7 Matter Fused 13 | . . . 1 1 . 3 . 6 1 . . 1 Heat Flow Errors 10 | . . . 1 1 . 1 . . . 1 . 6 Energy Discharges 11 | . . . . 2 . 3 . 2 . . . 4 Parts Rejected 3 | . . . . . . . . 1 . . . 2 Parts Fused 2 | . . . . 1 . . . 1 . . . . Data Loss (minor) 5 | . . . 1 1 . . . 1 . . . 2 Data Loss (major) 2 | . . . . . . . . . . . 1 1 Misfires 4 | . . . . . . 1 . 2 . . 1 . Alerts 2 | . . . . . . . . 1 . . . 1 Weapon Failures 2 | . . . . . . . . . . . . 2 Overload Shots . | . . . . . . . . . . . . . Overflow Damage 44 | . . . . . . . . 9 . . . 35 Projectiles 22 | . . . . . . . . 9 . . . 13 Explosions 2 | . . . . . . . . . . . . 2 Melee 20 | . . . . . . . . . . . . 20 Knockbacks 3 | . . . . . . . . 2 . . . 1 Impact . | . . . . . . . . . . . . . Kinetic 3 | . . . . . . . . 2 . . . 1 Secondary . | . . . . . . . . . . . . . Self-Inflicted Damage 140 | . . . . . . . . . 37 . 103 . Shots 2 | . . . . . . . . . 1 . 1 . Rammed 16 | . . . . . 7 2 . 5 . . . 2 Targets Rammed 24 | . . . . . 7 3 . 5 . . . 9 Kicked 7 | . . . . . . . . . . . . 7 Crushed 1 | . . . . . . 1 . . . . . . Highest Temperature 385 | . 5 . 251 172 54 96 . 132 9 162 . 385 Average Temperature 78 | . 2 . 128 92 26 71 . 37 4 88 . 93 Received Heat Transfer 1586 | . 81 . . . 189 48 . 231 13 9 18 997 Effects 2 | . . . . . . . . . . . . 2 Interference 1 | . . . . . . . . . . . . 1 Damage (minor) 1 | . . . . . . . . . . . . 1 Siege Activations . | . . . . . . . . . . . . . Robots Corrupted 2 | . . . . . . . . . . . 1 1 Combat Hostiles 1 | . . . . . . . . . . . . 1 Parts Fried 3 | . . . . . . . . . . . 2 1 Impact Corruptions . | . . . . . . . . . . . . . Robots Melted 1 | . . . . . . . . 1 . . . . Combat Hostiles 1 | . . . . . . . . 1 . . . . Parts Melted 8 | . . . . . 4 . . 2 . . . 2 Heat Transferred 3758 | . . . . . 1517 . 74 1610 37 . 50 470 Parts Sabotaged 4 | . . . . . . . . . . . . 4 Parts Stolen . | . . . . . . . . . . . . . Parts Stripped . | . . . . . . . . . . . . . Power Chain Reactions 3 | . . . . . . . . . . . 1 2 Missiles Intercepted . | . . . . . . . . . . . . . Alert | -11 -10 -10 -10 -9 -8 -7 -6 -6 -6 -6 -6 -5 ------- Run | Jun Mat Min Exi Min Mat Fac Fac Ext Cet Arc Hub Fac Peak Influence 1386 | . 198 39 . 77 244 203 83 759 823 539 837 1386 Initial 420 | . . 39 . . 29 9 59 40 420 290 188 382 Average 340 | . 88 39 . 4 147 59 39 295 654 507 563 1070 Maximum Alert Level 4 | . . . . . 1 1 . 3 3 2 3 4 Low Security (%) 57 | 100 100 100 . 100 76 91 100 56 . . . . Level 1 10 | . . . . . 23 8 . 18 . 11 23 1 Level 2 14 | . . . . . . . . 13 60 88 61 14 Level 3 9 | . . . . . . . . 12 39 . 14 23 Level 4 8 | . . . . . . . . . . . . 60 Level 5 . | . . . . . . . . . . . . . High Security . | . . . . . . . . . . . . . Max Security . | . . . . . . . . . . . . . Squads Dispatched 19 | . 1 . . . 2 3 . 3 1 . 1 8 Investigation 4 | . . . . . . . . 2 1 . . 1 Extermination 5 | . . . . . . 3 . . . . . 2 Reinforcement 4 | . 1 . . . 2 . . . . . 1 . Assault 6 | . . . . . . . . 1 . . . 5 Garrison . | . . . . . . . . . . . . . Intercept . | . . . . . . . . . . . . . Searches Triggered . | . . . . . . . . . . . . . Construction Impeded . | . . . . . . . . . . . . . Haulers Reinforced 1 | . . . . . . . . . . . 1 . Active Scanning Responses . | . . . . . . . . . . . . . Cargo Convoy Interrupts 1 | . . . . . . . 1 . . . . . Stealth | -11 -10 -10 -10 -9 -8 -7 -6 -6 -6 -6 -6 -5 --------- Run | Jun Mat Min Exi Min Mat Fac Fac Ext Cet Arc Hub Fac Distress Signals 14 | . 2 . . . 4 . . 2 2 . 3 1 Communications Jammed . | . . . . . . . . . . . . . Distress Signals . | . . . . . . . . . . . . . Times Spotted 198 | . 16 . . 4 24 14 3 39 10 4 13 71 Peak Tracking Total 14 | . 4 . . 4 4 5 3 6 5 2 4 14 Tactical Retreats 9 | . 2 . . . . . . 2 . . . 5 Traps | -11 -10 -10 -10 -9 -8 -7 -6 -6 -6 -6 -6 -5 ------- Run | Jun Mat Min Exi Min Mat Fac Fac Ext Cet Arc Hub Fac Traps Triggered 4 | . 1 . . . . 1 1 . . . . 1 Indirectly . | . . . . . . . . . . . . . Trap Hack Attempts . | . . . . . . . . . . . . . Triggered . | . . . . . . . . . . . . . Disarmed . | . . . . . . . . . . . . . Reprogrammed . | . . . . . . . . . . . . . Reused . | . . . . . . . . . . . . . Traps Extracted . | . . . . . . . . . . . . . Installed . | . . . . . . . . . . . . . Triggered 1 | . . . . . . . 1 . . . . . Machines | -11 -10 -10 -10 -9 -8 -7 -6 -6 -6 -6 -6 -5 ---------- Run | Jun Mat Min Exi Min Mat Fac Fac Ext Cet Arc Hub Fac Machines Disabled 22 | . . . . . . 2 . 4 1 3 6 6 Max in Single Turn 4 | . . . . . . 1 . 1 1 . 4 2 Garrison Access 1 | . . . . . . . . . . . . 1 Network Hub 1 | . . . . . . . . . . . 1 . Machines Repaired . | . . . . . . . . . . . . . Machines Sabotaged . | . . . . . . . . . . . . . Overloaded Fab Kills . | . . . . . . . . . . . . . Hacking | -11 -10 -10 -10 -9 -8 -7 -6 -6 -6 -6 -6 -5 --------- Run | Jun Mat Min Exi Min Mat Fac Fac Ext Cet Arc Hub Fac Machines Accessed 36 | . 5 . . . 5 6 3 8 2 . 4 3 Terminals 33 | . 5 . . . 5 5 3 8 2 . 4 1 Fabricators . | . . . . . . . . . . . . . Repair Stations . | . . . . . . . . . . . . . Recycling Units . | . . . . . . . . . . . . . Scanalyzers . | . . . . . . . . . . . . . Garrison Access 3 | . . . . . . 1 . . . . . 2 Total Hacks 75 | . 9 . . . 12 11 4 21 3 . 8 7 Successful 22 | . 4 . . . 3 1 1 7 1 . 3 2 Failed 53 | . 5 . . . 9 10 3 14 2 . 5 5 Catastrophic 15 | . 1 . . . 4 5 1 2 1 . . 1 Database Lockouts . | . . . . . . . . . . . . . Manual 28 | . 7 . . . 5 4 3 1 2 . 3 3 Terminals 69 | . 9 . . . 12 9 4 21 3 . 8 3 Fabricators . | . . . . . . . . . . . . . Repair Stations . | . . . . . . . . . . . . . Recycling Units . | . . . . . . . . . . . . . Scanalyzers . | . . . . . . . . . . . . . Garrison Access 6 | . . . . . . 2 . . . . . 4 Terminal Hacks 17 | . 4 . . . 2 1 1 6 1 . 2 . Record 1 | . . . . . . . . . 1 . . . Robot Analysis 2 | . 1 . . . . . . . . . 1 . Prototype ID Bank 1 | . 1 . . . . . . . . . . . Open Door 7 | . . . . . . . 1 6 . . . . Branch Access Points 2 | . 1 . . . 1 . . . . . . . Unreport Threat 1 | . . . . . 1 . . . . . . . Zone Layout 3 | . 1 . . . . 1 . . . . 1 . Fabricator Hacks . | . . . . . . . . . . . . . Repair Station Hacks . | . . . . . . . . . . . . . Recycling Unit Hacks . | . . . . . . . . . . . . . Scanalyzer . | . . . . . . . . . . . . . Garrison Access Hacks 1 | . . . . . . . . . . . . 1 Seal Access 1 | . . . . . . . . . . . . 1 Unauthorized Hacks 4 | . . . . . 1 . . 1 . . 1 1 Terminals 4 | . . . . . 1 . . 1 . . 1 1 Botnet 4 | . . . . . 1 . . 1 . . 1 1 Fabricators . | . . . . . . . . . . . . . Repair Stations . | . . . . . . . . . . . . . Recycling Units . | . . . . . . . . . . . . . Scanalyzers . | . . . . . . . . . . . . . Garrison Access . | . . . . . . . . . . . . . Data Cores Recovered 3 | . . . . . . 1 . . . . 1 1 Used 1 | . . . . . . . . . . . 1 . Hacking Detections 33 | . 4 . . . 5 6 2 8 2 . 4 2 Full Trace Events 4 | . . . . . . . . 2 1 . . 1 Feedback Events . | . . . . . . . . . . . . . Feedback Blocked . | . . . . . . . . . . . . . Robot Schematics Acquired . | . . . . . . . . . . . . . Robots Built . | . . . . . . . . . . . . . Authchips . | . . . . . . . . . . . . . Time . | . . . . . . . . . . . . . Total Robot Build Rating . | . . . . . . . . . . . . . Part Schematics Acquired . | . . . . . . . . . . . . . Parts Built . | . . . . . . . . . . . . . Authchips . | . . . . . . . . . . . . . Time . | . . . . . . . . . . . . . Total Part Build Rating . | . . . . . . . . . . . . . Parts Repaired . | . . . . . . . . . . . . . Time . | . . . . . . . . . . . . . Parts Recycled . | . . . . . . . . . . . . . Recycled Matter . | . . . . . . . . . . . . . Retrieved Matter . | . . . . . . . . . . . . . Retrieved Components . | . . . . . . . . . . . . . Parts Scanalyzed . | . . . . . . . . . . . . . Part Schematics Acquired . | . . . . . . . . . . . . . Parts Damaged . | . . . . . . . . . . . . . Bothacking | -11 -10 -10 -10 -9 -8 -7 -6 -6 -6 -6 -6 -5 ------------ Run | Jun Mat Min Exi Min Mat Fac Fac Ext Cet Arc Hub Fac Used RIF Installer . | . . . . . . . . . . . . . Robots Hacked . | . . . . . . . . . . . . . Non-combat . | . . . . . . . . . . . . . Combat . | . . . . . . . . . . . . . Robot Hacks Applied . | . . . . . . . . . . . . . Relay Couplers Released . | . . . . . . . . . . . . . Fabnet Peak Effective % . | . . . . . . . . . . . . . Robots Rewired 20 | . . . . . . . . 20 . . . . Allies Hacked . | . . . . . . . . . . . . . Hacks Repelled . | . . . . . . . . . . . . . Allies | -11 -10 -10 -10 -9 -8 -7 -6 -6 -6 -6 -6 -5 -------- Run | Jun Mat Min Exi Min Mat Fac Fac Ext Cet Arc Hub Fac Total Allies 37 | . . . . 1 . . . 28 5 . 3 . Largest Group 12 | . . . . 1 . . . 12 11 8 8 5 Highest-Rated Group 802 | . . . . 31 . . . 418 802 637 516 415 Highest-Rated Ally 159 | . . . . 31 . . . 159 159 159 96 96 Total Orders . | . . . . . . . . . . . . . Ally Attacks 400 | . . . . 6 . . . 188 72 23 65 46 Total Damage 9450 | . . . . 87 . . . 3595 2035 566 1884 1283 Kills 85 | . . . . 2 . . . 36 16 4 13 14 Allies Corrupted 4 | . . . . . . . . . 2 . 1 1 Allies Melted . | . . . . . . . . . . . . . Intel | -11 -10 -10 -10 -9 -8 -7 -6 -6 -6 -6 -6 -5 ------- Run | Jun Mat Min Exi Min Mat Fac Fac Ext Cet Arc Hub Fac Robot Analysis Total 2 | . 1 . . . . . . . . . 1 . Derelict Logs Recovered 1 | . . . . 1 . . . . . . . . Drone Launches . | . . . . . . . . . . . . . Drone Recoveries . | . . . . . . . . . . . . . Exploration | -11 -10 -10 -10 -9 -8 -7 -6 -6 -6 -6 -6 -5 ------------- Run | Jun Mat Min Exi Min Mat Fac Fac Ext Cet Arc Hub Fac Turns Passed 10086 | 4 719 72 253 689 1184 1468 648 2222 589 189 671 1378 Spaces Moved 4940 | 4 388 45 159 184 560 772 329 1102 311 96 390 600 Core . | . . . . . . . . . . . . . Treads 4784 | . 253 45 159 184 560 772 329 1102 311 96 390 583 Legs 156 | 4 135 . . . . . . . . . . 17 Wheels . | . . . . . . . . . . . . . Hover . | . . . . . . . . . . . . . Flight . | . . . . . . . . . . . . . Fastest Speed 120 | 120 120 160 160 160 155 163 162 162 162 162 156 120 Average Speed 159 | 120 146 160 160 160 162 163 162 162 162 162 158 157 Slowest Speed 400 | 120 160 160 160 160 163 163 162 162 162 162 162 400 Overloaded Moves . | . . . . . . . . . . . . . Propulsion Burnouts . | . . . . . . . . . . . . . Robots Hopped . | . . . . . . . . . . . . . Cave-ins Triggered . | . . . . . . . . . . . . . Exploration Rate (%) 44 | 1 70 20 55 31 48 27 12 97 75 89 40 19 Regions Visited 12 Branch Regions 7 Pre-discovered Areas . | . . . . . . . . . . . . . Known Exits Taken 1 | . 1 . . . . . . . . . . . Unknown Exits Taken 11 | 1 . 1 1 1 1 1 1 1 1 1 1 . Scrap Searched 2 | . . . . 2 . . . . . . . . Spaces Dug 10 | . . . . . . . . 4 . . . 6 Terrain Destroyed 306 | . . . . . 11 2 2 9 42 4 161 75 Melee 10 | . . . . . . . . 4 . . . 6 Projectile 43 | . . . . . . 2 2 5 . 4 9 21 AOE 253 | . . . . . 11 . . . 42 . 152 48 Terrain Rammed . | . . . . . . . . . . . . . Walls Destroyed . | . . . . . . . . . . . . . Machines Disabled . | . . . . . . . . . . . . . Actions | -11 -10 -10 -10 -9 -8 -7 -6 -6 -6 -6 -6 -5 --------- Run | Jun Mat Min Exi Min Mat Fac Fac Ext Cet Arc Hub Fac Total 6728 | 3 513 45 158 573 768 960 437 1447 356 131 433 904 Wait 1084 | . 73 . . 372 93 127 101 83 10 15 27 183 Move 4928 | 3 387 44 158 183 559 771 328 1101 310 95 389 600 Hop . | . . . . . . . . . . . . . Pick Up 80 | . 9 . . 4 24 13 2 7 . 9 2 10 Fast Attach 26 | . 6 . . . 1 2 . 3 2 . 1 11 Attach 25 | . . . . . 4 4 2 2 . . 1 12 Detach 6 | . 2 . . . . . . 1 1 . 1 1 Swap 56 | . 3 1 . 5 13 8 1 8 8 . 3 6 Drop 100 | . 15 . . 5 27 18 . 11 2 9 3 10 Fire 181 | . 18 . . 4 40 14 3 39 6 3 5 49 Melee 34 | . . . . . . . . 4 17 . . 13 Ram . | . . . . . . . . . . . . . Kick 7 | . . . . . . . . . . . . 7 Crush 17 | . . . . . 7 3 . 5 . . . 2 Escape Stasis . | . . . . . . . . . . . . . Rewire 184 | . . . . . . . . 183 . . 1 . Trap . | . . . . . . . . . . . . . Miscellaneous . | . . . . . . . . . . . . . Route ------- -11/Junkyard -10/Materials (discovered 4 exits: [*Mat x2] / *Min x2) -10/Mines -10/Exiles (discovered 2 exits: [*Min x2]) -9/Mines -8/Materials -7/Factory -6/Factory (discovered 2 exits: [*Low] / *Ext) -6/Extension (discovered 3 exits: *Fac x2 / *Cet) -6/Cetus (discovered 3 exits: *Fac x2 / [*Arc]) -6/Archives (discovered 3 exits: *Fac / *Hub x2) -6/Hub_04(d) -5/Factory (discovered 1 exit: [*Fac]) History --------- Turn | Location | Event 1 | -11/Junkyard | Discovered new exit (range 2) 5 | -11/Junkyard | Entered Materials 300 | -10/Materials | Build established: Mutant 335 | -10/Materials | Discovered new exit (range 18) 335 | -10/Materials | Identified exit to Mines 414 | -10/Materials | Discovered new exit (range 5) 606 | -10/Materials | Discovered new exit (range 16) 724 | -10/Materials | Entered Mines 790 | -10/Mines | Deemed a non-threat by the Exiles lab entrance 790 | -10/Mines | Discovered new exit (range 5) 796 | -10/Mines | Entered Exiles 817 | -10/Exiles | Discovered new exit (range 15) 836 | -10/Exiles | Met 8R-AWN 862 | -10/Exiles | Met EX-HEX 908 | -10/Exiles | Met EX-BIN 928 | -10/Exiles | Aligned with FarCom system 929 | -10/Exiles | Given EX-Vault access code 974 | -10/Exiles | Met EX-DEC 1028 | -10/Exiles | Discovered new exit (range 14) 1049 | -10/Exiles | Entered Mines 1136 | -9/Mines | Learned Materials interactive machine intel 1368 | -9/Mines | Discovered new exit (range 10) 1650 | -9/Mines | Received a Mining Laser from a helpful Derelict 1738 | -9/Mines | Entered Materials 1738 | -8/Materials | Evolved 4 slots: Propulsion x1, Utility x2, Weapon x1 1739 | -8/Materials | Loaded intel: 18 interactive machine locations 2036 | -8/Materials | Build established: Scavenger-Skirmisher 2872 | -8/Materials | Discovered new exit (range 10) 2922 | -8/Materials | Entered Factory 2922 | -7/Factory | Evolved 2 slots: Utility x2 3289 | -7/Factory | Build established: Skirmisher 4307 | -7/Factory | Build established: Gunner 4327 | -7/Factory | Discovered new exit (range 15) 4390 | -7/Factory | Entered another Factory area 4390 | -6/Factory | Evolved 2 slots: Propulsion x1, Utility x1 4917 | -6/Factory | Discovered new exit (range 3) 4982 | -6/Factory | Cargo convoy interrupted 5030 | -6/Factory | Discovered new exit (range 6) 5038 | -6/Factory | Entered Extension 5266 | -6/Extension | Rescued a captive Derelict 5267 | -6/Extension | Rescued a captive Derelict 5807 | -6/Extension | Rescued a captive Derelict 5817 | -6/Extension | Rescued a captive Derelict 5868 | -6/Extension | Build established: Commander-Gunner 6148 | -6/Extension | Spotted B-75 Beast 6159 | -6/Extension | Allies destroyed B-75 Beast 6168 | -6/Extension | Spotted B-75 Beast 6184 | -6/Extension | Allies destroyed B-75 Beast 6231 | -6/Extension | Discovered new exit (range 3) 6407 | -6/Extension | Discovered new exit (range 16) 6407 | -6/Extension | Discovered new exit (range 16) 6582 | -6/Extension | Rescued a captive Derelict 6725 | -6/Extension | Rescued a captive Derelict 6726 | -6/Extension | Rescued a captive Derelict 6788 | -6/Extension | First assault squad dispatched 7139 | -6/Extension | Rescued A7 7260 | -6/Extension | Entered Cetus 7260 | -6/Cetus | Accompanied by 9 allies (A7) 7265 | -6/Cetus | Acquired a Cetus Manufacturing Module code from A7 7286 | -6/Cetus | Spotted Cetus Guard 7286 | -6/Cetus | Spotted Cetus Guard 7291 | -6/Cetus | Spotted Cetus Guard 7293 | -6/Cetus | Spotted Cetus Guard 7297 | -6/Cetus | Allies destroyed Cetus Guard 7297 | -6/Cetus | Allies destroyed Cetus Guard 7305 | -6/Cetus | Allies destroyed Cetus Guard 7307 | -6/Cetus | Allies destroyed Cetus Guard 7362 | -6/Cetus | Discovered new exit (range 16) 7515 | -6/Cetus | Started Cetus Manufacturing Module 7540 | -6/Cetus | Manufactured an Enhanced Grunt 7565 | -6/Cetus | Manufactured an Enhanced Grunt 7590 | -6/Cetus | Manufactured an Enhanced Grunt 7615 | -6/Cetus | Manufactured an Enhanced Grunt 7640 | -6/Cetus | Manufactured an Enhanced Grunt 7695 | -6/Cetus | Discovered new exit (range 15) 7722 | -6/Cetus | Spotted Cetus Guard 7722 | -6/Cetus | Spotted Cetus Guard 7729 | -6/Cetus | Spotted Cetus Guard 7729 | -6/Cetus | Allies destroyed Cetus Guard 7730 | -6/Cetus | Spotted Cetus Guard 7734 | -6/Cetus | Allies destroyed Cetus Guard 7741 | -6/Cetus | Discovered new exit (range 16) 7741 | -6/Cetus | Allies destroyed Cetus Guard 7751 | -6/Cetus | Met Revision 17 7849 | -6/Cetus | Entered Archives 7849 | -6/Archives | Accompanied by 8 allies (A7) 7898 | -6/Archives | Discovered new exit (range 13) 7932 | -6/Archives | Discovered new exit (range 15) 7982 | -6/Archives | Discovered new exit (range 15) 8038 | -6/Archives | Entered Hub_04(d) 8038 | -6/Hub_04(d) | Accompanied by 5 allies 8207 | -6/Hub_04(d) | Discovered new exit (range 22) 8229 | -6/Hub_04(d) | Allied Derelicts emerged from ambush trap array 8641 | -6/Hub_04(d) | Network Hub disabled 8709 | -6/Hub_04(d) | Entered Factory 8709 | -5/Factory | Accompanied by 5 allies 8709 | -5/Factory | Evolved 2 slots: Propulsion x1, Utility x1 8731 | -5/Factory | Build established: Scavenger-Gunner 9009 | -5/Factory | First assault squad dispatched 9124 | -5/Factory | Destroyed 7 combat bots 9545 | -5/Factory | Discovered new exit (range 4) 9833 | -5/Factory | Build established: Scavenger-Assassin 10074 | -5/Factory | Core integrity fell below 50% 10087 | -5/Factory | Self-destructed Last Messages --------------- 10066_ Critical hit (Burn: +37). 10067_ Kicked S-27 Virus. 10067_ Flexi-carbon Leg destroyed. 10068_ M-28 Smith repairs Wheel. 10068_ Carbon-fiber Leg destroyed. 10070_ Acquired 5 matter. 10070_ G-50 Soldier Adv. Heat Sink severed. 10070_ Imp. Medium Armor Plating destroyed. 10071_ Gauss Cannon destroyed. 10076_ Imp. Dynamic Insulation System destroyed. 10076_ Critical hit (Burn: +37). 10077_ G-50 Soldier Carbon-fiber Leg severed. 10082_ Destroyed Lgt. Angular Momentum Engine. 10082_ Hvy. Laser melted. 10082_ G-50 Soldier destroyed. 10083_ M-28 Smith repairs G-50 Soldier. 10083_ P-70 Sage resets G-67 Veteran, system corruption cleaned. 10084_ Adv. Heat Sink destroyed. 10086_ Critical hit (Burn: +50). 10086_ Power Sword destroyed. Map ----- +----------------------------------------------------+ | ???#?????????????????????????????????????????????? | | ?????????????????????????????????????????????????? | | ?????????????????????????????????????????????????? | | ?????????????????????????????????????????????????? | | ?????????????????????????????????????????????????? | | ?????????????????????????????????????????????????? | | ????????????????????????????????????????????????? | | ? ??????????????????????????????????????????????? | | ???? ? ?????#????????????????????????????????????? | | ??? ???????????????????????????????????????????? | | ??? ???????????????????????????????????????????? | | ####/####????????????????????????????????????????? | | #????????????????????????????????????????? | | #?#?#????????????????????????????????????? | | #?#??????????#????????????? #????????????? | | #??????#?????????????????? #????????????? | | #?#?????????????????????? ?????????????? | | ##?????????????????????? ??????????????? | | ###############??????###+###?????????????? | | ???? k ??????????????? | | ???? ???????????????? | | ?? ?????????????????? | | [!! ?? ??????????????????? | | !!=[= b ????????????????????? | | ######%## ###########s###???????????????????? | | # |% =# # = g @g #???????????????????? | | # " " "%#%=% p[%ps g m %!= #???????????????????? | | # " " "%/% !+ """ """ """ #???????????????????? | | # " " "%#%" # """ """ """ #???????????????????? | | # " " " #" # """m"""g""" #???????????????????? | | # " " " # # #???????????????????? | | # " " " # ###############???????????????????? | | # " " " # #?????????????????????????????????? | | + " " " # ???????????????????????Y????????? | | # " " " # ???????????????????????????????? | | # # ??????????????????????????????? | | ######### ?????????????????????????????? | | #???????# ????????????????????????????? | | ##???????##########+##???????????????????????????? | | ???????????#????????????????????????????????????? | | "" ? ????????????????????????????????????????????? | | "" #???????????????????????????????????????????? | | "" ##??????????????????????????????????????????? | | "" [ #???#???????????????????????????????????????? | | #???????????????????????????????????????????? | | "??? #???????????????????????????????????????????? | | ?????????????????????????????????????????????????? | | ?????????????????????????????????????????????????? | | ?????????????????????????????????????????????????? | | ?????????????????????????????????????????????????? | +----------------------------------------------------+ Best States ------------- Heat Dissipation 78 Energy Generation 19 Energy Capacity 315 Matter Stores 300 Matter Capacity 300 Sight Range 22 Terrain Scan Range 16 Terrain Scan Density 10 EM Shielding 3 Armor Coverage 675 Resistance: KI 30 Evasion (%) 55 Targeting Accuracy 16 Recoil Reduction 5 Kinecelleration 30 Item Schematics ----------------- None Robot Schematics ------------------ None Fabricated ------------ Nothing Alien Tech Used ----------------- None Achievements -------------- Collateral Damage Generalissimo Revising The Future Challenges ------------ None Game ------ Seed WaveDrainedInverter Manual? 0 Play Time 01:28:41 Cumulative 75.1 hours Start 2023.10.02 @ 00:13:57 End 2023.10.02 @ 01:44:58 Sessions 1 Manual Loads 0 Difficulty Rogue Special Mode None Game No. 44 Rogue 44 Adventurer 0 Explorer 0 Win Type - Total 0 Types 0/0/0/0/0/0/0/0/0 Lore% 23 Gallery% 46 Achievement% 40 Wizard Run 0 Options --------- ASCII 0 Keyboard 1 Movement Numpad Keybinds 0 Fullscreen 1 Font 24/Smallcaps Map View 76x50 Tactical HUD 1 Map Filters NONE Filters NONE Steam 1 RUN: c5dcbd90-7b90-410f-b40f-cf32b35bb965